bitfinex/quotes_SOLUSD_20251118
["timestamp","ask_amount","ask_price","bid_price","bid_amount"]
[1763496280308,20.61408468,141.66,141.64,0.87]
[1763496280309,2.49312468,141.67,141.64,0.87]
[1763496280610,4.2,141.67,141.65,0.67]
[1763496281792,4.2,141.67,141.64,0.2]
[1763496281991,4.2,141.67,141.64,0.87]
[1763496283215,6.69312468,141.69,141.65,0.68]
[1763496283392,4.2,141.69,141.65,0.68]
[1763496283706,4.2,141.71,141.66,2.49312468]
[1763496283893,4.2,141.71,141.67,0.68]
[1763496284494,6.69312468,141.71,141.67,0.68]
[1763496284697,3.17312468,141.7,141.65,0.68]
[1763496285591,0.68,141.7,141.65,0.68]
[1763496285799,4.90412617,141.71,141.65,0.68]
[1763496286111,5.58412617,141.71,141.65,0.68]
[1763496286493,5.58412617,141.71,141.65,3.17312468]
[1763496286697,25.49408468,141.71,141.66,0.68]
[1763496286895,22.32096,141.71,141.66,3.17312468]
[1763496287292,23.00096,141.71,141.67,0.68]
[1763496287615,18.12096,141.71,141.67,0.68]
[1763496288114,18.80096,141.71,141.67,0.68]
[1763496289017,18.12096,141.71,141.67,0.68]
[1763496289311,20.61408468,141.71,141.67,0.68]
[1763496291316,2.49312468,141.72,141.67,0.68]
[1763496291499,4.2,141.73,141.67,3.17312468]
[1763496291691,4.2,141.73,141.68,2.49312468]
[1763496291896,6.69312468,141.75,141.69,2.49312468]
[1763496292097,6.69312468,141.75,141.69,3.17312468]
[1763496292292,7.37312468,141.75,141.7,0.68]
[1763496296231,21.29408468,141.75,141.7,0.68]
[1763496297233,18.80096,141.75,141.7,3.17312468]
[1763496297408,18.12096,141.75,141.71,2.49312468]
[1763496297735,4.2,141.76,141.72,2.49312468]
[1763496297918,0.68,141.77,141.72,3.17312468]
[1763496298102,0.68,141.77,141.73,0.68]
[1763496300332,2.49312468,141.74,141.69,0.68]
[1763496300510,2.49312468,141.73,141.69,0.68]
[1763496300841,2.49312468,141.72,141.69,0.68]
[1763496301037,4.2,141.74,141.69,3.17312468]
[1763496301212,4.88,141.74,141.69,3.17312468]
[1763496301413,4.88,141.74,141.7,0.68]
[1763496302618,2.49312468,141.75,141.7,3.17312468]
[1763496302824,4.18,141.76,141.7,3.17312468]
[1763496302825,7.35312468,141.76,141.7,3.17312468]
[1763496303033,7.35312468,141.76,141.71,0.68]
[1763496303434,0.68,141.75,141.71,0.68]
[1763496303633,3.17312468,141.75,141.71,0.68]
[1763496303845,3.17312468,141.74,141.68,2.49312468]
[1763496304023,2.49312468,141.71,141.67,0.68]
[1763496304543,3.17312468,141.71,141.67,0.68]
[1763496305832,2.49312468,141.71,141.67,0.68]
[1763496306126,3.17312468,141.72,141.67,0.68]
[1763496306535,3.17312468,141.71,141.67,0.68]
[1763496307346,2.49312468,141.69,141.64,0.2]
[1763496307642,7.35312468,141.7,141.64,3.37312468]
[1763496308146,7.35312468,141.7,141.65,0.68]
[1763496309134,4.18,141.7,141.65,3.17312468]
[1763496309331,4.18,141.7,141.66,2.49312468]
[1763496309535,4.18,141.7,141.66,3.17312468]
[1763496309739,4.18,141.7,141.67,0.68]
[1763496310344,7.37725085,141.72,141.67,0.68]
[1763496310528,4.18,141.72,141.67,3.17312468]
[1763496311020,4.18,141.72,141.68,0.68]
[1763496311216,4.18,141.72,141.68,3.17312468]
[1763496311521,25.47408468,141.73,141.68,0.68]
[1763496311727,25.47408468,141.73,141.69,0.68]
[1763496312229,3.19312468,141.72,141.67,0.69]
[1763496312530,20.61408468,141.73,141.68,0.69]
[1763496312733,22.30096,141.73,141.68,3.18312468]
[1763496313142,4.18,141.73,141.69,0.69]
[1763496313341,6.67312468,141.73,141.69,0.69]
[1763496313528,4.18,141.73,141.69,0.69]
[1763496313925,4.18,141.73,141.7,2.49312468]
[1763496314425,0.7,141.75,141.71,0.69]
[1763496314756,4.18,141.75,141.71,0.69]
[1763496314925,4.88,141.75,141.71,0.69]
[1763496315124,4.18,141.75,141.71,0.69]
[1763496315844,4.18,141.77,141.72,2.49312468]
[1763496316026,4.18,141.77,141.73,2.49312468]
[1763496316418,4.18,141.77,141.74,0.69]
[1763496319728,4.88,141.77,141.72,3.8912077]
[1763496319942,4.88,141.77,141.73,0.69]
[1763496320142,4.5912077,141.76,141.7,0.69]
[1763496320347,4.5912077,141.75,141.7,0.69]
[1763496320664,0.7,141.75,141.7,4.5812077]
[1763496320946,5.29533387,141.75,141.7,0.69]
[1763496321153,5.29533387,141.75,141.71,0.67]
[1763496322030,8.7312077,141.74,141.69,0.67]
[1763496322227,4.84,141.74,141.7,0.67]
[1763496322427,4.59533387,141.77,141.71,3.8912077]
[1763496322650,8.7312077,141.76,141.7,4.5612077]
[1763496322836,4.5512077,141.75,141.7,0.67]
[1763496323352,4.5512077,141.74,141.7,0.67]
[1763496324051,3.8912077,141.72,141.67,0.67]
[1763496324358,3.8912077,141.7,141.64,18.32096]
[1763496324523,3.8912077,141.7,141.66,0.67]
[1763496324731,4.5512077,141.71,141.66,0.67]
[1763496324952,3.8912077,141.71,141.66,0.67]
[1763496325127,4.5512077,141.71,141.66,0.67]
[1763496325722,0.70412617,141.75,141.68,3.8912077]
[1763496325922,4.18,141.74,141.69,4.5612077]
[1763496326155,0.66,141.73,141.69,0.67]
[1763496327262,0.66,141.73,141.64,9.98882769]
[1763496327263,3.8912077,141.72,141.67,18.79096]
[1763496327447,3.8912077,141.72,141.67,18.12096]
[1763496327765,8.7312077,141.74,141.68,4.5612077]
[1763496327973,4.5512077,141.73,141.68,0.67]
[1763496328253,8.0712077,141.74,141.69,0.67]
[1763496328554,1.36412617,141.75,141.7,3.8912077]
[1763496328741,5.54412617,141.75,141.7,3.8912077]
[1763496328946,5.54412617,141.75,141.71,0.67]
[1763496329139,4.88412617,141.75,141.71,0.67]
[1763496329364,0.66,141.74,141.71,0.67]
[1763496329681,0.66,141.74,141.69,4.5612077]
[1763496329971,0.66,141.74,141.7,0.67]
[1763496330378,4.5512077,141.74,141.68,3.8912077]
[1763496330580,4.5512077,141.74,141.68,4.5612077]
[1763496330751,3.8912077,141.73,141.67,22.0121677]
[1763496330958,3.8912077,141.73,141.69,0.67]
[1763496331375,4.5512077,141.73,141.67,22.0121677]
[1763496331673,4.5512077,141.73,141.68,0.67]
[1763496332268,0.66,141.72,141.68,0.67]
[1763496332674,0.70412617,141.73,141.68,4.5612077]
[1763496332856,0.66,141.72,141.68,0.67]
[1763496337862,5.25533387,141.74,141.68,4.5612077]
[1763496338366,5.25533387,141.74,141.69,0.67]
[1763496338774,0.66,141.73,141.69,0.67]
[1763496339381,4.59533387,141.72,141.66,4.85]
[1763496339577,5.25533387,141.72,141.67,0.67]
[1763496339969,4.5512077,141.71,141.65,22.0121677]
[1763496340278,4.5512077,141.71,141.66,0.67]
[1763496340652,0.66,141.7,141.66,0.67]
[1763496343767,0.66,141.7,141.64,0.2]
[1763496343979,0.71,141.71,141.65,4.5512077]
[1763496344168,0.71,141.71,141.66,3.8912077]
[1763496344476,1.41412617,141.71,141.66,4.5512077]
[1763496344782,4.59533387,141.72,141.67,0.66]
[1763496345085,5.30533387,141.72,141.67,0.66]
[1763496345284,1.41412617,141.72,141.67,4.5512077]
[1763496345476,22.0121677,141.73,141.67,4.5512077]
[1763496345477,22.71629387,141.73,141.67,4.5512077]
[1763496345672,0.71,141.71,141.67,3.8912077]
[1763496345869,5.30533387,141.73,141.68,0.66]
[1763496346074,18.12096,141.72,141.68,0.66]
[1763496346276,18.83096,141.72,141.68,0.66]
[1763496346669,18.12096,141.72,141.68,4.5512077]
[1763496346877,5.30533387,141.74,141.68,4.5512077]
[1763496347075,5.30533387,141.74,141.69,0.66]
[1763496347268,4.6012077,141.73,141.69,0.66]
[1763496348286,5.30533387,141.72,141.67,0.66]
[1763496348667,4.6012077,141.71,141.65,18.78096]
[1763496348864,4.6012077,141.71,141.65,22.6721677]
[1763496349080,4.6012077,141.71,141.66,0.66]
[1763496349588,0.71,141.7,141.66,0.66]
[1763496350380,0.71,141.7,141.65,22.6721677]
[1763496350687,8.7812077,141.7,141.65,18.78096]
[1763496350878,8.7812077,141.7,141.65,18.12096]
[1763496351079,8.7812077,141.7,141.66,0.66]
[1763496351388,8.7812077,141.7,141.64,0.2]
[1763496351389,3.8912077,141.68,141.64,0.2]
[1763496351589,3.8912077,141.67,141.64,0.2]
[1763496351993,0.71,141.66,141.64,0.2]
[1763496353794,4.88412617,141.7,141.64,0.2]
[1763496353795,4.6012077,141.68,141.64,0.2]
[1763496354099,3.8912077,141.68,141.64,0.2]
[1763496354294,0.71,141.68,141.64,0.86]
[1763496355997,1.41412617,141.68,141.64,0.86]
[1763496356373,5.30533387,141.68,141.64,0.86]
[1763496357300,0.71,141.68,141.65,0.66]
[1763496357877,0.71,141.68,141.64,0.2]
[1763496357878,4.6012077,141.68,141.64,0.2]
[1763496358191,4.6012077,141.68,141.64,0.86]
[1763496358374,0.71,141.67,141.64,0.2]
[1763496358569,4.6012077,141.67,141.64,0.2]
[1763496358789,3.8912077,141.66,141.64,0.2]
[1763496359000,4.6012077,141.66,141.64,0.2]
[1763496359198,0.71,141.66,141.64,0.2]
[1763496359579,4.6012077,141.66,141.64,0.2]
[1763496359885,3.8912077,141.65,141.64,0.2]
[1763496360218,4.6012077,141.65,141.64,0.2]
[1763496360379,8.8012077,141.65,141.64,0.2]
[1763496360882,26.9221677,141.65,141.64,0.2]
[1763496362298,4.2,141.66,141.64,0.2]
[1763496362489,4.90412617,141.66,141.64,0.2]
[1763496362683,5.61412617,141.66,141.64,0.2]
[1763496363205,9.50533387,141.66,141.64,0.2]
[1763496364191,4.90412617,141.66,141.64,0.86]
[1763496364400,4.2,141.66,141.64,0.86]
[1763496365529,4.2,141.66,141.64,0.2]
[1763496365797,4.2,141.66,141.64,0.86]
[1763496366306,4.2,141.66,141.64,0.2]
[1763496366483,8.8012077,141.66,141.64,0.2]
[1763496366688,0.71,141.65,141.64,0.2]
[1763496367116,8.8012077,141.66,141.64,0.2]
[1763496370618,1.41412617,141.65,141.64,0.2]
[1763496371003,0.70412617,141.65,141.64,0.2]
[1763496371717,8.0912077,141.66,141.64,0.86]
[1763496371718,4.2,141.66,141.64,0.86]
[1763496371901,5.61412617,141.66,141.64,0.2]
[1763496372102,9.50533387,141.66,141.64,0.2]
[1763496372821,8.8012077,141.66,141.64,0.2]
[1763496373419,4.2,141.66,141.64,0.2]
[1763496373608,4.90412617,141.66,141.64,0.9]
[1763496373804,4.2,141.66,141.64,0.9]
[1763496374819,5.30533387,141.65,141.64,0.2]
[1763496375329,15.09416156,141.65,141.64,0.2]
[1763496376620,27.90978769,141.62,141.61,0.2]
[1763496376799,36.00099539,141.62,141.61,0.2]
[1763496376998,36.71099539,141.62,141.61,0.2]
[1763496378834,35.0397387,141.62,141.61,0.2]
[1763496381331,30.8397387,141.62,141.61,0.2]
[1763496381533,34.3297387,141.62,141.61,0.2]
[1763496381720,35.0497387,141.62,141.61,0.2]
[1763496381926,25.26091101,141.62,141.61,0.2]
[1763496382121,2.92407718,141.63,141.61,0.91]
[1763496382307,4.90412617,141.63,141.61,0.91]
[1763496382637,2.93995101,141.62,141.61,0.2]
[1763496382797,2.21995101,141.62,141.61,0.2]
[1763496384505,12.0087787,141.62,141.61,0.2]
[1763496384703,2.93995101,141.62,141.61,0.2]
[1763496384897,21.06091101,141.62,141.61,0.2]
[1763496385416,18.12096,141.62,141.61,0.2]
[1763496385797,0.70412617,141.63,141.61,0.2]
[1763496385998,4.2,141.63,141.61,0.91]
[1763496386204,4.90412617,141.63,141.61,0.91]
[1763496386425,4.2,141.63,141.61,0.91]
[1763496386609,6.41995101,141.63,141.61,0.91]
[1763496386811,4.2,141.63,141.61,0.91]
[1763496387398,6.41995101,141.63,141.61,0.2]
[1763496387598,0.70412617,141.62,141.61,0.2]
[1763496389118,4.2,141.65,141.61,3.12995101]
[1763496389297,6.41995101,141.65,141.61,0.91]
[1763496389502,6.41995101,141.65,141.62,0.71]
[1763496389725,3.64407718,141.66,141.62,0.71]
[1763496389905,2.92407718,141.66,141.62,0.71]
[1763496390296,2.21995101,141.66,141.62,0.71]
[1763496390508,6.41995101,141.67,141.62,0.71]
[1763496391018,2.21995101,141.66,141.62,0.71]
[1763496391208,2.21995101,141.69,141.63,2.21995101]
[1763496391405,6.41995101,141.69,141.63,2.21995101]
[1763496391609,2.21995101,141.71,141.65,2.21995101]
[1763496392002,2.21995101,141.7,141.66,0.71]
[1763496392908,2.21995101,141.68,141.66,0.71]
[1763496393821,2.21995101,141.69,141.66,0.71]
[1763496394122,2.21995101,141.7,141.66,0.71]
[1763496395603,2.21995101,141.68,141.66,0.71]
[1763496396028,2.21995101,141.68,141.63,18.12096]
[1763496396229,2.21995101,141.68,141.64,0.71]
[1763496396902,2.21995101,141.67,141.64,0.71]
[1763496397107,2.21995101,141.68,141.64,0.71]
[1763496397433,6.41995101,141.69,141.64,2.92995101]
[1763496397803,6.41995101,141.69,141.65,0.71]
[1763496398507,4.2,141.69,141.65,0.71]
[1763496398812,6.41995101,141.69,141.65,0.71]
[1763496399130,2.21995101,141.7,141.65,2.92995101]
[1763496399429,2.21995101,141.69,141.66,0.71]
[1763496400021,2.21995101,141.68,141.66,0.71]
[1763496400223,2.21995101,141.69,141.66,0.71]
[1763496402821,2.92407718,141.7,141.66,0.71]
[1763496403234,4.2,141.72,141.66,0.71]
[1763496403438,6.41995101,141.72,141.66,2.92995101]
[1763496403816,6.41995101,141.72,141.67,0.7]
[1763496404425,7.13995101,141.72,141.67,0.7]
[1763496406332,2.21995101,141.71,141.67,0.7]
[1763496406916,2.93995101,141.7,141.66,0.7]
[1763496407111,2.21995101,141.69,141.67,0.7]
[1763496407524,2.21995101,141.68,141.64,22.32096]
[1763496407727,2.21995101,141.68,141.65,0.7]
[1763496408130,2.21995101,141.67,141.65,0.7]
[1763496408439,0.72,141.68,141.65,0.7]
[1763496408440,2.21995101,141.68,141.65,0.7]
[1763496409543,2.21995101,141.66,141.63,0.7]
[1763496410240,2.21995101,141.67,141.63,0.7]
[1763496410562,6.41995101,141.68,141.63,2.91995101]
[1763496410735,4.2,141.68,141.63,2.91995101]
[1763496410934,4.2,141.68,141.64,2.91995101]
[1763496411126,2.21995101,141.69,141.64,2.91995101]
[1763496411438,2.21995101,141.69,141.65,0.7]
[1763496411641,2.21995101,141.68,141.65,0.7]
[1763496411937,2.21995101,141.67,141.62,2.21995101]
[1763496412140,2.21995101,141.67,141.62,2.91995101]
[1763496412331,2.21995101,141.67,141.63,0.7]
[1763496414544,2.21995101,141.68,141.63,2.91995101]
[1763496414923,2.21995101,141.68,141.64,0.7]
[1763496416343,18.12096,141.71,141.64,2.91995101]
[1763496416546,2.21995101,141.7,141.64,0.7]
[1763496416844,2.21995101,141.7,141.65,0.7]
[1763496418235,2.21995101,141.7,141.65,2.91995101]
[1763496418434,2.21995101,141.7,141.66,0.7]
[1763496419345,2.21995101,141.71,141.66,0.7]
[1763496420134,2.21995101,141.71,141.66,2.91995101]
[1763496420530,2.21995101,141.7,141.67,0.7]
[1763496420926,2.21995101,141.71,141.67,0.7]
[1763496421249,6.41995101,141.72,141.67,0.7]
[1763496421652,4.2,141.72,141.67,2.91995101]
[1763496421947,2.21995101,141.75,141.7,2.21995101]
[1763496422326,2.21995101,141.76,141.71,0.7]
[1763496422554,2.93995101,141.76,141.71,0.7]
[1763496422848,2.21995101,141.75,141.71,0.7]
[1763496423031,2.93995101,141.75,141.71,0.7]
[1763496423227,20.34091101,141.76,141.71,0.7]
[1763496423549,6.41995101,141.77,141.72,20.34091101]
[1763496424058,6.41995101,141.77,141.73,0.7]
[1763496424354,7.13995101,141.77,141.73,0.7]
[1763496425245,6.41995101,141.77,141.73,0.7]
[1763496425448,4.2,141.77,141.73,0.7]
[1763496425856,2.21995101,141.79,141.73,18.82096]
[1763496426060,2.21995101,141.79,141.74,2.21995101]
[1763496426353,2.21995101,141.79,141.74,2.91995101]
[1763496426559,6.49995101,141.8,141.75,2.91995101]
[1763496426735,6.49995101,141.8,141.75,0.7]
[1763496426934,2.21995101,141.79,141.76,0.7]
[1763496427134,2.21995101,141.78,141.73,22.30096]
[1763496427349,2.21995101,141.76,141.73,0.7]
[1763496428230,2.21995101,141.77,141.73,0.7]
[1763496428430,3.64407718,141.79,141.73,2.91995101]
[1763496428855,3.64407718,141.79,141.74,0.7]
[1763496429636,4.28,141.8,141.75,2.21995101]
[1763496429835,2.21995101,141.79,141.74,0.7]
[1763496430040,2.21995101,141.79,141.74,2.91995101]
[1763496430330,7.21995101,141.8,141.74,2.91995101]
[1763496430534,7.21995101,141.8,141.75,0.7]
[1763496430857,2.21995101,141.79,141.75,0.7]
[1763496433163,2.89995101,141.78,141.72,0.7]
[1763496433374,2.21995101,141.75,141.7,0.7]
[1763496433540,0.70412617,141.77,141.68,9.78882769]
[1763496433541,2.21995101,141.71,141.68,5.66]
[1763496433735,2.21995101,141.7,141.67,18.12096]
[1763496433939,2.21995101,141.7,141.67,0.7]
[1763496435247,0.68,141.72,141.67,0.7]
[1763496435451,2.21995101,141.7,141.67,0.7]
[1763496437069,0.68,141.72,141.67,0.7]
[1763496437368,2.21995101,141.69,141.67,0.7]
[1763496437876,2.21995101,141.69,141.62,9.78882769]
[1763496437877,2.89995101,141.68,141.62,9.06]
[1763496438088,2.21995101,141.67,141.63,0.7]
[1763496438538,2.89995101,141.68,141.63,0.7]
[1763496438745,4.14387534,141.68,141.63,0.7]
[1763496439869,0.68,141.7,141.63,4.16387534]
[1763496440170,3.46387534,141.69,141.63,4.16387534]
[1763496440338,3.46387534,141.69,141.64,0.7]
[1763496440760,4.14387534,141.69,141.64,0.7]
[1763496440961,3.46387534,141.69,141.64,0.7]
[1763496441675,4.13387534,141.68,141.64,0.7]
[1763496441882,4.13387534,141.69,141.64,0.7]
[1763496442089,3.46387534,141.68,141.64,0.7]
[1763496443083,3.46387534,141.7,141.65,3.46387534]
[1763496443463,4.13387534,141.7,141.66,0.68]
[1763496443858,3.46387534,141.7,141.66,0.68]
[1763496444271,4.13387534,141.7,141.66,0.68]
[1763496446288,3.46387534,141.69,141.66,0.68]
[1763496447785,4.13387534,141.69,141.66,0.68]
[1763496447984,3.46387534,141.69,141.66,0.68]
[1763496448182,3.46387534,141.7,141.66,0.68]
[1763496448491,3.46387534,141.69,141.66,0.68]
[1763496449473,4.13387534,141.69,141.66,0.68]
[1763496449878,3.46387534,141.69,141.66,0.68]
[1763496452293,3.46387534,141.67,141.62,4.18]
[1763496452499,3.46387534,141.67,141.63,0.68]
[1763496452874,4.13387534,141.66,141.63,0.68]
[1763496453073,3.46387534,141.64,141.61,0.2]
[1763496453296,3.46387534,141.62,141.61,0.2]
[1763496454977,3.46387534,141.63,141.61,0.2]
[1763496455293,4.13387534,141.63,141.61,0.2]
[1763496455689,3.46387534,141.63,141.61,0.2]
[1763496456795,3.46387534,141.64,141.61,0.2]
[1763496457004,0.67,141.67,141.62,0.68]
[1763496457202,4.13387534,141.67,141.62,4.14387534]
[1763496457502,4.13387534,141.67,141.62,0.68]
[1763496457704,4.13387534,141.67,141.63,0.68]
[1763496458879,18.12096,141.66,141.63,0.68]
[1763496462106,7.64387534,141.69,141.64,3.46387534]
[1763496462283,3.46387534,141.69,141.64,3.46387534]
[1763496462485,4.16387534,141.69,141.65,0.69]
[1763496462910,0.7,141.68,141.65,0.69]
[1763496463280,4.16387534,141.68,141.63,4.15387534]
[1763496463487,4.16387534,141.68,141.63,3.46387534]
[1763496463812,4.16387534,141.68,141.64,0.69]
[1763496464308,3.46387534,141.66,141.61,4.35387534]
[1763496464512,3.46387534,141.65,141.61,0.89]
[1763496465014,3.46387534,141.65,141.62,0.69]
[1763496465392,3.46387534,141.66,141.62,4.15387534]
[1763496465599,0.7,141.68,141.63,4.15387534]
[1763496465600,4.16387534,141.68,141.63,4.15387534]
[1763496466098,4.16387534,141.68,141.64,0.69]
[1763496466289,0.7,141.67,141.64,0.69]
[1763496466898,4.16387534,141.67,141.62,4.15387534]
[1763496467098,4.16387534,141.67,141.63,0.69]
[1763496467809,0.7,141.66,141.63,0.69]
[1763496468312,3.46387534,141.65,141.61,0.2]
[1763496468815,4.16387534,141.65,141.61,0.89]
[1763496471307,4.16387534,141.64,141.61,0.2]
[1763496471816,0.7,141.63,141.61,0.2]
[1763496472402,3.46387534,141.64,141.61,0.2]
[1763496472614,4.16387534,141.64,141.61,0.2]
[1763496473302,0.7,141.63,141.61,0.2]
[1763496474515,4.16387534,141.64,141.61,0.2]
[1763496474924,3.46387534,141.64,141.61,0.2]
[1763496475228,0.7,141.63,141.61,0.2]
[1763496477532,4.16387534,141.64,141.61,0.2]
[1763496477902,3.46387534,141.64,141.61,0.2]
[1763496478318,0.7,141.63,141.61,0.2]
[1763496479196,3.46387534,141.64,141.61,0.2]
[1763496479391,0.7,141.63,141.61,0.2]
[1763496480820,3.46387534,141.64,141.61,0.2]
[1763496481023,0.7,141.67,141.61,0.89]
[1763496481318,3.46387534,141.66,141.61,0.89]
[1763496481520,4.2,141.68,141.64,3.46387534]
[1763496481909,0.7,141.68,141.65,0.69]
[1763496482307,3.46387534,141.69,141.65,0.69]
[1763496482507,0.7,141.68,141.65,0.69]
[1763496483797,4.16387534,141.69,141.65,0.69]
[1763496484199,26.48483534,141.7,141.65,4.15387534]
[1763496484433,3.46387534,141.71,141.66,3.46387534]
[1763496484607,4.86800151,141.72,141.67,3.46387534]
[1763496484806,18.12096,141.7,141.67,0.69]
[1763496485022,21.58483534,141.7,141.65,8.35387534]
[1763496485217,0.7,141.69,141.66,0.69]
[1763496485422,4.16387534,141.69,141.66,0.69]
[1763496485607,3.46387534,141.67,141.63,0.69]
[1763496486014,4.16387534,141.67,141.63,0.69]
[1763496486206,3.46387534,141.67,141.63,0.69]
[1763496486421,3.46387534,141.68,141.63,4.15387534]
[1763496486735,4.16387534,141.68,141.63,4.15387534]
[1763496487028,4.16387534,141.68,141.64,0.69]
[1763496487332,3.46387534,141.66,141.62,0.69]
[1763496487715,4.86800151,141.67,141.62,4.15387534]
[1763496488113,4.86800151,141.67,141.63,0.69]
[1763496488518,4.86800151,141.67,141.61,4.4]
[1763496488519,21.58483534,141.64,141.61,0.2]
[1763496488720,18.12096,141.64,141.62,0.69]
[1763496488932,4.2,141.66,141.62,4.15387534]
[1763496489437,4.2,141.66,141.63,0.69]
[1763496489814,22.28483534,141.67,141.63,0.69]
[1763496492445,4.17387534,141.66,141.61,3.66387534]
[1763496492629,21.58483534,141.67,141.62,4.12387534]
[1763496492825,22.29483534,141.67,141.62,0.66]
[1763496493143,4.17387534,141.66,141.62,0.66]
[1763496493511,3.46387534,141.64,141.61,0.2]
[1763496493738,3.46387534,141.62,141.61,0.2]
[1763496493936,7.66387534,141.62,141.61,0.2]
[1763496494144,8.37387534,141.62,141.61,0.2]
[1763496495916,22.29483534,141.62,141.61,0.2]
[1763496498917,21.05042249,141.62,141.61,0.2]
[1763496500147,25.25042249,141.62,141.61,0.2]
[1763496502053,16.91829018,141.62,141.61,0.2]
[1763496503533,16.91829018,141.62,141.6,0.2]
[1763496503735,3.59358866,141.61,141.6,0.2]
[1763496504847,13.38241635,141.61,141.6,0.2]
[1763496505728,0.70412617,141.61,141.6,0.2]
[1763496506048,4.2,141.61,141.6,0.2]
[1763496506236,0.70412617,141.61,141.6,0.2]
[1763496506440,18.82508617,141.61,141.6,0.2]
[1763496506641,21.04454866,141.61,141.6,0.2]
[1763496506842,25.24454866,141.61,141.6,0.2]
[1763496507336,23.02508617,141.61,141.6,0.2]
[1763496507545,25.24454866,141.61,141.6,0.2]
[1763496508258,22.32096,141.61,141.6,0.91]
[1763496508437,22.32096,141.61,141.6,0.2]
[1763496509122,24.54042249,141.61,141.6,0.2]
[1763496510743,22.32096,141.61,141.6,0.91]
[1763496510943,18.12096,141.61,141.6,0.91]
[1763496511664,4.90412617,141.65,141.6,3.12946249]
[1763496511862,6.41946249,141.65,141.61,0.71]
[1763496512653,4.2,141.65,141.61,2.92946249]
[1763496513166,4.2,141.65,141.62,0.71]
[1763496513352,2.0,141.74,141.62,0.71]
[1763496513353,0.67,141.71,141.64,2.21946249]
[1763496513549,2.92358866,141.7,141.65,2.21946249]
[1763496513729,18.12096,141.67,141.64,2.21946249]
[1763496513929,6.41946249,141.7,141.65,2.21946249]
[1763496514145,4.2,141.7,141.65,2.21946249]
[1763496514346,4.2,141.7,141.66,0.71]
[1763496515850,4.2,141.7,141.66,2.92946249]
[1763496516458,6.41946249,141.7,141.67,0.71]
[1763496517161,4.2,141.7,141.67,0.71]
[1763496517766,2.21946249,141.74,141.69,2.21946249]
[1763496517965,6.41946249,141.74,141.69,2.21946249]
[1763496518166,6.41946249,141.74,141.7,0.71]
[1763496518337,4.2,141.74,141.7,2.92946249]
[1763496518542,4.2,141.74,141.71,0.71]
[1763496518742,6.41946249,141.74,141.71,0.71]
[1763496520448,7.12358866,141.74,141.68,2.21946249]
[1763496520850,2.21946249,141.73,141.69,0.71]
[1763496521056,7.79358866,141.74,141.69,0.71]
[1763496521844,7.79358866,141.74,141.69,2.92946249]
[1763496522244,7.79358866,141.74,141.7,0.69]
[1763496522771,7.78358866,141.74,141.7,0.69]
[1763496524256,2.21946249,141.73,141.7,0.69]
[1763496525069,4.2,141.74,141.7,2.90946249]
[1763496525242,4.86,141.74,141.7,2.90946249]
[1763496525448,4.86,141.74,141.71,0.69]
[1763496525648,7.07946249,141.74,141.71,0.69]
[1763496526377,2.21946249,141.73,141.69,0.69]
[1763496526673,7.07946249,141.74,141.7,0.69]
[1763496526874,2.21946249,141.73,141.7,0.69]
[1763496527474,6.41946249,141.74,141.7,0.69]
[1763496527770,7.07946249,141.74,141.7,0.69]
[1763496528080,22.96096,141.75,141.7,0.69]
[1763496528372,2.21946249,141.74,141.7,0.69]
[1763496530455,2.87946249,141.74,141.7,0.69]